fUST/lending_fUST_20240609
["ID","MTS","AMOUNT","RATE_DAILY","PERIOD"]
[328860253,1717895442567,-407.04730228,0.00018816,2]
[328860254,1717895442578,-309.92252015,0.00018816,2]
[328860255,1717895442589,-187.27413947,0.00018816,2]
[328860256,1717895442600,-151.0,0.00018816,2]
[328860257,1717895442610,-151.0,0.00018816,2]
[328860258,1717895442621,-151.0,0.00018816,2]
[328860259,1717895442631,-151.0,0.00018816,2]
[328860261,1717895442641,-151.0,0.00018816,2]
[328860263,1717895442651,-323.761376,0.00018816,2]
[328860265,1717895442661,-323.761376,0.00018816,2]
[328860267,1717895442671,-151.0,0.00018816,2]
[328860269,1717895442683,-151.0,0.00018816,2]
[328860271,1717895442693,-261.6662717,0.00018817,2]
[328860273,1717895442703,-921.85323911,0.00018817,2]
[328860275,1717895442713,-249.49868128,0.00018818,2]
[328860277,1717895442723,-19304.6312253,0.00018818,2]
[328860279,1717895442733,-151.0,0.00018818,2]
[328860281,1717895442743,-151.0,0.00018818,2]
[328860283,1717895442752,-151.0,0.00018818,2]
[328860285,1717895442762,-151.0,0.00018818,2]
[328860287,1717895442772,-323.761376,0.00018818,2]
[328860289,1717895442782,-323.761376,0.00018818,2]
[328860291,1717895442791,-151.0,0.00018818,2]
[328860293,1717895442800,-151.0,0.00018818,2]
[328860295,1717895442810,-151.0,0.00018818,2]
[328860297,1717895442819,-1281.12811487,0.00018899,2]
[328860298,1717895442829,-29550.83895502,0.000189,7]
[328860300,1717895442840,-945.32067944,0.000189,2]
[328860302,1717895442850,-526.16308522,0.000189,2]
[328860303,1717895442860,-2684.34073309,0.000189,2]
[328860304,1717895442870,-151.0,0.000189,2]
[328860305,1717895442880,-151.0,0.000189,2]
[328860306,1717895442889,-255.90555191,0.000189,2]
[328860307,1717895442899,-5332.04590888,0.000189,2]
[328860308,1717895442911,-151.0,0.000189,2]
[328860309,1717895442921,-151.0,0.000189,2]
[328860310,1717895442932,-151.0,0.000189,2]
[328860311,1717895442942,-151.0,0.000189,2]
[328860312,1717895442953,-151.0,0.000189,2]
[328860313,1717895442963,-151.0,0.000189,2]
[328860314,1717895442973,-151.0,0.000189,2]
[328860315,1717895442984,-243.236982,0.000189,2]
[328860316,1717895442994,-323.761376,0.000189,2]
[328860317,1717895443005,-323.761376,0.000189,2]
[328860318,1717895443015,-323.761376,0.000189,2]
[328860319,1717895443025,-323.761376,0.000189,2]
[328860320,1717895443035,-323.761376,0.000189,2]
[328860321,1717895443045,-323.761376,0.000189,2]
[328860322,1717895443055,-151.0,0.000189,2]
[328860323,1717895443064,-151.0,0.000189,2]
[328860324,1717895443074,-151.0,0.000189,2]
[328860325,1717895443084,-34771.75657688,0.000189,2]
[328860334,1717895444825,-260.2386595,0.000188,2]
[328860335,1717895444835,-929.49899203,0.00018899,2]
[328860342,1717895447075,-1102.43640757,0.00018899,2]
[328860343,1717895447088,-514.55065191,0.00018899,2]
[328860344,1717895447100,-1229.33739131,0.00018899,2]
[328860432,1717895564479,10000.0,0.00028,120]
[328860433,1717895579955,10000.0,0.00028,120]
[328860435,1717896048325,103886.66104927,0.00028,120]
[328860436,1717896048360,500.0,0.00028,120]
[328860505,1717896634281,-2541.34440398,0.00017131,2]
[328860508,1717896634293,-2817.0306054,0.00017132,2]
[328860510,1717896634303,-11489.17349935,0.00017672,2]
[328860512,1717896634314,-155.07906392,0.00017672,2]
[328860514,1717896634324,-155.06173504,0.00017672,2]
[328860516,1717896634334,-155.18429318,0.00017672,2]
[328860518,1717896634344,-155.01751066,0.00017672,2]
[328860520,1717896634354,-155.10772152,0.00017672,2]
[328860522,1717896634364,-155.07510765,0.00017672,2]
[328860524,1717896634375,-155.04224631,0.00017672,2]
[328860526,1717896634385,-9584.29016261,0.00017673,2]
[328860528,1717896634396,-4338.64495371,0.00017674,2]
[328860530,1717896634409,-7936.5616625,0.00017674,2]
[328860532,1717896634421,-774.65,0.00017674,2]
[328860535,1717896634433,-3023.45680044,0.00017674,2]
[328860668,1717896645716,-155.24671602,0.00017673,2]
[328860669,1717896645727,-155.32309918,0.00017673,2]
[328860670,1717896645736,-1213.7201848,0.00017674,2]
[328860679,1717896648474,-7242.200015,0.00017674,2]
[328860681,1717896648487,-394.87059409,0.00017674,2]
[328860682,1717896648497,-1479.49386132,0.00017799,2]
[328860684,1717896648507,-500.0,0.00017899,2]
[328860685,1717896648518,-1500.79,0.00017899,2]
[328860686,1717896648528,-559.7440606,0.00017899,2]
[328860687,1717896648538,-163.37777719,0.00017899,2]
[328860690,1717896649416,-336.62222281,0.00017899,2]
[328860691,1717896649427,-500.0,0.00017899,2]
[328860692,1717896649438,-500.0,0.00017899,2]
[328860693,1717896649448,-500.0,0.00017899,2]
[328860694,1717896649459,-326.19611212,0.00017899,2]
[328860698,1717896889410,185.35879109,9.999e-05,2]
[328860699,1717896926182,292.00810724,9.999e-05,2]
[328860702,1717896931304,154.9690062,9.999e-05,2]
[328860703,1717896944184,292.00810724,9.999e-05,2]
[328860704,1717896949173,157.18211283,9.999e-05,2]
[328860705,1717896960206,292.00810724,9.999e-05,2]
[328860706,1717896980192,292.00810724,9.999e-05,2]
[328860707,1717897004200,292.00810724,9.999e-05,2]
[328860708,1717897022195,292.00810724,9.999e-05,2]
[328860709,1717897038197,292.00810724,9.999e-05,2]
[328860710,1717897056199,292.00810724,9.999e-05,2]
[328860711,1717897064127,173.34133142,0.000147,2]
[328860712,1717897064557,173.34133142,0.000147,2]
[328860713,1717897065127,173.34133,0.000147,2]
[328860714,1717897076198,292.00810724,9.999e-05,2]
[328860715,1717897089315,303.24901435,9.999e-05,2]
[328860716,1717897092207,292.00810724,9.999e-05,2]
[328860717,1717897114209,292.00810724,9.999e-05,2]
[328860718,1717897130212,292.00810724,9.999e-05,2]
[328860719,1717897148222,292.00810724,9.999e-05,2]
[328860720,1717897168224,292.00810724,9.999e-05,2]
[328860721,1717897192216,292.00810724,9.999e-05,2]
[328860722,1717897210234,292.00810724,9.999e-05,2]
[328860723,1717897230239,348.96027044,9.999e-05,2]
[328860724,1717897321947,288.0,0.00023,30]
[328860725,1717897342201,8000.0,0.00025,60]
[328860726,1717897371943,361.79522538,0.000135,2]
[328860727,1717897372378,361.79522538,0.000135,2]
[328860728,1717897373383,361.79522538,0.000135,2]
[328860729,1717897373825,361.79522538,0.000135,2]
[328860730,1717897374335,361.79522538,0.000135,2]
[328860731,1717897375472,361.79522538,0.000135,2]
[328860732,1717897375934,361.79522538,0.000135,2]
[328860733,1717897376432,361.79522538,0.000135,2]
[328860734,1717897376742,361.79522538,0.000135,2]
[328860735,1717897377182,361.79522538,0.000135,2]
[328860736,1717897377584,361.79522538,0.000135,2]
[328860737,1717897377989,361.79522538,0.000135,2]
[328860738,1717897378406,361.79522538,0.000135,2]
[328860739,1717897378826,361.79522538,0.000135,2]
[328860740,1717897379364,361.79522538,0.000135,2]
[328860741,1717897380216,361.79522538,0.000135,2]
[328860742,1717897380651,361.79522538,0.000135,2]
[328860743,1717897381101,361.79522538,0.000135,2]
[328860744,1717897381503,361.79522538,0.000135,2]
[328860745,1717897381962,361.79522,0.000135,2]
[328860746,1717897436254,5000.0,0.00026605,120]
[328860747,1717897617492,8063.97,0.00015,2]
[328860922,1717897847406,-777.98286234,0.00017004,2]
[328860925,1717897915250,154.9690062,9.999e-05,2]
[328860926,1717898468022,2117.79649659,0.00015,2]
[328860927,1717898692593,523.17752712,9.999e-05,2]
[328860928,1717898819474,216.30293909,9.999e-05,2]
[328860933,1717898928175,185.35879109,9.999e-05,2]
[328860936,1717899011411,305.0,0.000266,120]
[328860953,1717899033672,-933.5287611,0.00017004,2]
[328860954,1717899033685,-169.84321362,0.00017004,2]
[328860955,1717899033696,-251.38153134,0.00017005,2]
[328860956,1717899033706,-403.1545969,0.00017213,2]
[328860957,1717899033716,-2688.65594461,0.00017997,2]
[328860958,1717899033726,-155.10983824,0.00018,2]
[328860959,1717899033736,-1058.74102237,0.00018,2]
[328860960,1717899033746,-1355.02163008,0.00018,2]
[328860961,1717899033756,-1297.09286302,0.00018168,2]
[328860962,1717899033766,-162.6824897,0.00018168,2]
[328860963,1717899033777,-410.3096018,0.000182,2]
[328860964,1717899033787,-588.1044864,0.000182,2]
[328860965,1717899033797,-153.0,0.000182,2]
[328860966,1717899033807,-313.9867788,0.000182,2]
[328860967,1717899033817,-153.0,0.000182,2]
[328860968,1717899033828,-2119.05075475,0.00018249,2]
[328860969,1717899033838,-155.10373475,0.00018266,2]
[328860970,1717899034018,-299.14448797,0.00018266,2]
[328860971,1717899034029,-2402.63647146,0.00018266,2]
[328860972,1717899034039,-174.92075192,0.00018266,2]
[328860973,1717899034049,-1915.24166483,0.00018266,2]
[328860974,1717899034059,-185.60622327,0.00018266,2]
[328860975,1717899034068,-929.59404507,0.00018267,2]
[328860976,1717899034078,-776.73081566,0.00018267,2]
[328860977,1717899034088,-155.55379011,0.00018267,2]
[328860978,1717899034098,-687.91756865,0.00018267,2]
[328860979,1717899034108,-155.22654378,0.00018267,2]
[328860980,1717899034118,-693.93698527,0.00018267,2]
[328860981,1717899034128,-302.29473283,0.00018267,2]
[328860982,1717899034137,-967.84221613,0.00018267,2]
[328860983,1717899034147,-1504.38635406,0.00018267,2]
[328860984,1717899034156,-500.0,0.00018267,2]
[328860985,1717899034166,-1501.64,0.00018267,2]
[328860986,1717899034175,-512.19599119,0.00018267,2]
[328860987,1717899034187,-500.0,0.00018267,2]
[328860988,1717899034197,-515.22435953,0.00018267,2]
[328860989,1717899034206,-514.14777671,0.00018267,2]
[328860990,1717899034217,-500.0,0.00018267,2]
[328860991,1717899034227,-517.23649186,0.00018267,2]
[328860992,1717899034237,-500.0,0.00018267,2]
[328860993,1717899034246,-504.54056394,0.00018267,2]
[328860994,1717899034256,-252.95256478,0.00018268,2]
[328860995,1717899034266,-500.0,0.00018268,2]
[328860996,1717899034276,-500.0,0.00018268,2]
[328860997,1717899034285,-488.14825815,0.00018268,2]
[328860998,1717899034295,-507.87045223,0.00018268,2]
[328860999,1717899034305,-500.0,0.00018268,2]
[328861000,1717899034315,-500.0,0.00018268,2]
[328861001,1717899034327,-500.0,0.00018268,2]
[328861002,1717899034338,-575.83315617,0.00018268,2]
[328861003,1717899034348,-412.65636567,0.00018268,2]
[328861004,1717899034358,-500.0,0.00018268,2]
[328861005,1717899034368,-500.0,0.00018268,2]
[328861006,1717899034378,-504.96123747,0.00018268,2]
[328861007,1717899034388,-500.0,0.00018268,2]
[328861008,1717899034398,-500.0,0.00018268,2]
[328861009,1717899034408,-518.37641316,0.00018268,2]
[328861010,1717899034418,-500.0,0.00018268,2]
[328861011,1717899034428,-507.97165097,0.00018268,2]
[328861012,1717899034437,-1384.30064244,0.00018268,2]
[328861108,1717899082756,154.9690062,9.999e-05,2]
[328861109,1717899459997,113013.0,0.00018267,120]
[328861110,1717899460036,45000.0,0.00018267,120]
[328861111,1717899460089,958.708988,0.00018267,120]
[328861112,1717899689028,1103.37197472,0.00015,2]
[328861113,1717899748141,16189.27952619,0.00015,2]
[328861114,1717899751211,2095.08239938,0.00015,2]
[328861115,1717899769212,2095.08239938,0.00015,2]
[328861116,1717899770145,16189.27952619,0.00015,2]
[328861117,1717899788143,9130.29941405,0.00015,2]
[328861118,1717899788172,7058.98011214,0.00015,2]
[328861119,1717899791417,2120.0978346,0.00015,2]
[328861120,1717899806145,9322.28444138,0.00015,2]
[328861123,1717899986344,291.83607441,0.00015,2]
[328861193,1717900233446,-658.12668409,0.00016435,2]
[328861195,1717900233459,-445.24529063,0.00016435,2]
[328861197,1717900233470,-78.22929724,0.00016436,2]
[328861199,1717900233482,-13648.57794892,0.00016436,2]
[328861201,1717900233493,-401.16004719,0.00016438,7]
[328861203,1717900233503,-1355.02163008,0.00018,2]
[328861204,1717900233513,-1058.74102237,0.00018,2]
[328861205,1717900233523,-549.22280535,0.00018168,2]
[328861206,1717900233534,-488.10679028,0.00018168,2]
[328861207,1717900233545,-1784.2297318,0.00018248,2]
[328861208,1717900233557,-706.11084473,0.00018265,2]
[328861209,1717900233567,-199.36460818,0.00018265,2]
[328861210,1717900233579,-2303.92619312,0.00018266,2]
[328861247,1717900248005,-317.49103689,0.00018266,2]
[328861249,1717900248015,-431.10049157,0.00018266,2]
[328861252,1717900248556,-292.86875118,0.00018266,2]
[328861253,1717900248566,-500.0,0.00018266,2]
[328861254,1717900248579,-500.0,0.00018266,2]
[328861255,1717900248589,-239.33382048,0.00018266,2]
[328861256,1717900248598,-500.0,0.00018266,2]
[328861257,1717900248608,-500.0,0.00018266,2]
[328861258,1717900248618,-273.13452867,0.00018266,2]
[328861259,1717900248628,-500.0,0.00018266,2]
[328861260,1717900248637,-500.0,0.00018266,2]
[328861261,1717900248647,-486.94244725,0.00018266,2]
[328861262,1717900248657,-289.10809278,0.00018266,2]
[328861263,1717900248666,-1461.4,0.00018266,2]
[328861264,1717900248675,-400.0,0.00018266,2]
[328861266,1717900248685,-500.0,0.00018266,2]
[328861267,1717900248696,-1058.74102237,0.00018266,2]
[328861268,1717900248705,-151.0,0.00018267,2]
[328861269,1717900248715,-500.0,0.00018267,2]
[328861270,1717900248725,-676.43438027,0.00018267,2]
[328861271,1717900248737,-762.63561973,0.00018267,2]
[328861272,1717900248747,-178.10284422,0.00018267,2]
[328861273,1717900248757,-338.98797221,0.00018267,2]
[328861274,1717900248770,-161.01202779,0.00018267,2]
[328861275,1717900248780,-185.30449836,0.00018268,2]
[328861276,1717900248790,-155.13963477,0.00018268,2]
[328861277,1717900248800,-32.12945621,0.00018268,2]
[328861278,1717900249004,-354.2,0.00018268,2]
[328861318,1717900249834,-305.93309397,0.00018268,2]
[328861319,1717900249845,-36.87190415,0.00018268,2]
[328861328,1717900250042,-118.20315402,0.00018268,2]
[328861330,1717900250052,-661.54992709,0.00018268,2]
[328861332,1717900250064,-520.87687899,0.00018268,2]
[328861334,1717900250073,-388.64829331,0.00018268,2]
[328861336,1717900250083,-500.0,0.00018268,2]
[328861338,1717900250093,-151.0,0.00018268,2]
[328861340,1717900250104,-162.424028,0.00018268,2]
[328861342,1717900250114,-243.371296,0.00018268,2]
[328861344,1717900250125,-941.57089711,0.00018268,2]
[328861359,1717900739571,1103.37197472,0.00015,2]
[328861360,1717901012605,291.83607441,0.00015,2]
[328861361,1717901217326,1103.37197472,0.00015,2]
[328861401,1717901433288,-1103.37197472,0.00016791,2]
[328861403,1717901433298,-4000.45422334,0.00016792,2]
[328861405,1717901433315,-13523.42094826,0.00016792,2]
[328861407,1717901433325,-173.0249692,0.00016995,2]
[328861409,1717901433336,-281.83331494,0.00017041,2]
[328861411,1717901433347,-154.9690062,0.00017213,2]
[328861413,1717901433357,-659.74061808,0.00017213,2]
[328861415,1717901433367,-186.94054263,0.00017214,2]
[328861417,1717901433377,-1058.74102237,0.00018,2]
[328861419,1717901433388,-1355.02163008,0.00018,2]
[328861421,1717901433399,-325.40452686,0.00018169,2]
[328861423,1717901433409,-1206.67895348,0.00018169,2]
[328861425,1717901433419,-154.457605,0.000182,2]
[328861427,1717901433429,-522.55731257,0.00018265,2]
[328861429,1717901433439,-298.8,0.00018265,2]
[328861431,1717901433449,-252.32412823,0.00018266,2]
[328861433,1717901433459,-528.62560314,0.00018267,2]
[328861435,1717901433470,-151.0,0.00018267,2]
[328861437,1717901433480,-603.79845265,0.00018267,2]
[328861439,1717901433490,-373.69991826,0.00018267,2]
[328861441,1717901433499,-300.0,0.00018268,2]
[328861443,1717901433509,-500.0,0.00018268,2]
[328861445,1717901433520,-500.0,0.00018268,2]
[328861447,1717901433530,-500.0,0.00018268,2]
[328861449,1717901433539,-500.0,0.00018268,2]
[328861450,1717901433549,-500.0,0.00018268,2]
[328861452,1717901433559,-1362.51,0.00018268,2]
[328861453,1717901433569,-500.0,0.00018268,2]
[328861454,1717901433579,-500.0,0.00018268,2]
[328861455,1717901433589,-500.0,0.00018268,2]
[328861456,1717901433599,-536.59789729,0.00018268,2]
[328861457,1717901433609,-500.0,0.00018268,2]
[328861458,1717901433619,-179.909033,0.00018268,2]
[328861459,1717901433629,-836.85,0.00018268,2]
[328861460,1717901433639,-1444.36,0.00018268,2]
[328861461,1717901433650,-500.0,0.00018268,2]
[328861462,1717901433660,-1154.078329,0.00018268,2]
[328861463,1717901433670,-1154.078329,0.00018268,2]
[328861464,1717901433680,-500.0,0.00018268,2]
[328861465,1717901433689,-500.0,0.00018268,2]
[328861466,1717901433700,-500.0,0.00018268,2]
[328861467,1717901433710,-500.0,0.00018268,2]
[328861468,1717901433720,-500.0,0.00018268,2]
[328861469,1717901433730,-511.36837453,0.00018268,2]
[328861470,1717901433739,-500.0,0.00018268,2]
[328861471,1717901433749,-4108.39,0.00018268,2]
[328861472,1717901433758,-1020.09,0.00018268,2]
[328861473,1717901433768,-158.356531,0.00018268,2]
[328861474,1717901433778,-500.0,0.00018268,2]
[328861475,1717901433787,-222.498606,0.00018269,2]
[328861476,1717901433797,-500.0,0.00018269,2]
[328861477,1717901433806,-500.0,0.00018269,2]
[328861478,1717901433815,-468.07391134,0.00018269,2]
[328861479,1717901433825,-500.0,0.00018269,2]
[328861480,1717901433835,-1400.51,0.00018269,2]
[328861481,1717901433844,-500.0,0.00018269,2]
[328861482,1717901433854,-500.0,0.00018269,2]
[328861483,1717901433864,-1757.79,0.00018269,2]
[328861484,1717901433874,-151.0,0.00018269,2]
[328861485,1717901433884,-151.0,0.00018269,2]
[328861486,1717901433893,-267.41102,0.00018269,2]
[328861487,1717901433904,-444.9775477,0.00018269,2]
[328861488,1717901433914,-151.0,0.00018269,2]
[328861489,1717901433924,-151.0,0.00018269,2]
[328861490,1717901433934,-151.0,0.00018269,2]
[328861491,1717901433944,-151.0,0.00018269,2]
[328861492,1717901433955,-500.0,0.00018269,2]
[328861493,1717901433965,-264.124559,0.00018269,2]
[328861494,1717901433975,-500.0,0.00018269,2]
[328861495,1717901433985,-1154.078329,0.00018269,2]
[328861496,1717901433995,-1154.078329,0.00018269,2]
[328861497,1717901434005,-1154.078329,0.00018269,2]
[328861498,1717901434015,-1154.078329,0.00018269,2]
[328861499,1717901434025,-151.0,0.00018269,2]
[328861500,1717901434035,-1154.078329,0.00018269,2]
[328861501,1717901434045,-184.007656,0.00018269,2]
[328861502,1717901434055,-1154.078329,0.00018269,2]
[328861503,1717901434065,-151.717742,0.00018269,2]
[328861504,1717901434075,-223.87708073,0.0001827,2]
[328861505,1717901434085,-179.00330087,0.0001827,2]
[328861525,1717901441259,-189.93747164,0.00018268,2]
[328861526,1717901441270,-1721.6291459,0.0001827,7]
[328861528,1717901441281,-3051.95952733,0.0001827,2]
[328861567,1717901444625,-208.243,0.00018119,2]
[328861570,1717901444636,-500.0,0.00018268,2]
[328861573,1717901444646,-806.92652978,0.0001827,2]
[328861575,1717901444659,-22141.11999999,0.0001827,2]
[328861577,1717901444671,-11334.2834767,0.0001827,2]
[328861620,1717901447925,-500.0,0.00018268,2]
[328861622,1717901447935,-19823.39353092,0.0001827,2]
[328861624,1717901447946,-151.0,0.0001827,2]
[328861625,1717901447956,-1154.078329,0.0001827,2]
[328861626,1717901447966,-1154.078329,0.0001827,2]
[328861627,1717901447976,-1154.078329,0.0001827,2]
[328861628,1717901447987,-1154.078329,0.0001827,2]
[328861629,1717901447997,-154.2534772,0.000183,2]
[328861630,1717901448006,-1206.67895346,0.00018306,2]
[328861631,1717901448016,-1206.67895346,0.00018443,2]
[328861632,1717901448026,-204.6475642,0.000185,2]
[328861633,1717901448036,-154.1121085,0.000185,2]
[328861634,1717901448046,-322.5151893,0.000185,2]
[328861635,1717901448055,-608.29530537,0.000185,2]
[328861636,1717901448065,-151.0,0.00018541,2]
[328861637,1717901448075,-1154.078329,0.00018541,2]
[328861638,1717901448084,-1154.078329,0.00018541,2]
[328861639,1717901448094,-444.99355971,0.00018542,2]
[328861640,1717901448104,-500.0,0.00018542,2]
[328861641,1717901448115,-1362.51,0.00018542,2]
[328861642,1717901448124,-203.593658,0.00018542,2]
[328861643,1717901448135,-500.0,0.00018542,2]
[328861644,1717901448144,-504.86263037,0.00018542,2]
[328861645,1717901448154,-500.0,0.00018542,2]
[328861646,1717901448164,-500.0,0.00018542,2]
[328861647,1717901448174,-836.85,0.00018542,2]
[328861648,1717901448184,-1444.36,0.00018542,2]
[328861649,1717901448194,-262.97706214,0.00018542,2]
[328861650,1717901448204,-1154.078329,0.00018542,2]
[328861651,1717901448214,-500.0,0.00018542,2]
[328861652,1717901448224,-1154.078329,0.00018542,2]
[328861653,1717901448234,-500.0,0.00018542,2]
[328861654,1717901448244,-500.0,0.00018542,2]
[328861655,1717901448254,-500.0,0.00018542,2]
[328861656,1717901448264,-4108.39,0.00018542,2]
[328861657,1717901448274,-1020.09,0.00018542,2]
[328861658,1717901448283,-590.62762922,0.00018542,2]
[328861659,1717901448293,-500.0,0.00018542,2]
[328861660,1717901448304,-500.0,0.00018542,2]
[328861661,1717901448319,-374.90598279,0.00018543,2]
[328861662,1717901448329,-500.0,0.00018543,2]
[328861663,1717901448339,-217.60044483,0.00018543,2]
[328861664,1717901448349,-500.0,0.00018543,2]
[328861665,1717901448360,-1757.79,0.00018543,2]
[328861666,1717901448370,-500.0,0.00018543,2]
[328861667,1717901448380,-632.68898133,0.00018543,2]
[328861668,1717901448392,-1154.078329,0.00018543,2]
[328861669,1717901448402,-1154.078329,0.00018543,2]
[328861670,1717901448412,-1154.078329,0.00018543,2]
[328861671,1717901448422,-1154.078333,0.00018543,2]
[328861672,1717901448432,-155.07628884,0.00018546,2]
[328861673,1717901448442,-1206.67895346,0.00018579,2]
[328861674,1717901448452,-1206.67895346,0.00018716,2]
[328861675,1717901448466,-325.40452685,0.00018717,2]
[328861676,1717901448476,-15008.36524879,0.00018798,7]
[328861677,1717901448486,-25991.48020542,0.00018798,2]
[328861678,1717901578215,154.9690062,9.999e-05,2]
[328861679,1717902122499,1103.37197472,0.00015,2]
[328861710,1717902511798,154.9690062,0.00015,2]
[328861739,1717902634097,-1103.37197472,0.00017512,2]
[328861740,1717902634108,-170.832621,0.00017513,2]
[328861742,1717902634118,-111.95299752,0.00017999,2]
[328861748,1717902634609,-43.01600868,0.00017999,2]
[328861749,1717902634620,-1355.02163008,0.00018143,2]
[328861750,1717902634630,-1058.74102237,0.00018143,2]
[328861751,1717902634640,-602.66100667,0.00018144,2]
[328861752,1717902634651,-372.50592829,0.00018268,2]
[328861753,1717902634661,-4270.92980663,0.00018415,2]
[328861754,1717902634671,-1000.0,0.000185,2]
[328861755,1717902634681,-1004.19,0.000185,3]
[328861756,1717902634691,-1311.81137755,0.00018701,2]
[328861757,1717902634701,-155.07072833,0.000188,2]
[328861758,1717902634712,-553.70629557,0.000188,2]
[328861759,1717902634722,-155.08337286,0.000188,2]
[328861760,1717902634732,-157.29562346,0.000188,2]
[328861761,1717902634742,-185.30449836,0.000188,2]
[328861762,1717902634753,-1000.0,0.000188,2]
[328861763,1717902634763,-1000.0,0.000188,3]
[328861764,1717902634773,-264.04424033,0.00018801,2]
[328861765,1717902634783,-500.0,0.00018801,2]
[328861766,1717902634793,-332.12014455,0.00018801,2]
[328861767,1717902634806,-500.0,0.00018801,2]
[328861768,1717902634816,-146.24670777,0.00018801,2]
[328861961,1717902653195,-154.9690062,0.000188,2]
[328861962,1717902653205,-374.28187348,0.000188,2]
[328861963,1717902653215,-364.48396306,0.00018801,2]
[328861968,1717902951720,252.39025362,9.999e-05,2]
[328861970,1717903257825,1103.37197472,0.00015,2]
[328861971,1717903570444,1801.54141711,9.999e-05,2]
[328862032,1717903834410,-1355.02163008,0.00018,2]
[328862035,1717903834421,-10541.20747573,0.00018595,2]
[328862038,1717903834431,-1103.37197472,0.00018596,2]
[328862041,1717903834441,-1147.83495533,0.00018599,2]
[328862043,1717903834452,-537.95,0.00018696,2]
[328862044,1717903834462,-500.0,0.00018696,2]
[328862046,1717903834472,-500.0,0.00018696,2]
[328862048,1717903834482,-511.83148567,0.00018696,2]
[328862050,1717903834492,-20117.93814047,0.00018697,2]
[328862053,1717903834507,-27157.27979225,0.00018697,2]
[328862054,1717903834517,-1852.1429614,0.00018699,2]
[328862059,1717903839939,-1046.40288198,0.00018697,7]
[328862061,1717903839951,-2125.76818348,0.00018699,2]
[328862063,1717903839963,-774.22266936,0.00018799,2]
[328862065,1717903839975,-155.01195528,0.00018799,2]
[328862067,1717903839986,-195.53389675,0.00018799,2]
[328862069,1717903839997,-761.72300918,0.00018799,2]
[328862071,1717903840009,-155.02014415,0.00018799,2]
[328862072,1717903840020,-157.3596227,0.00018799,2]
[328862074,1717903840032,-208.8946212,0.00018799,2]
[328862076,1717903840043,-188.26233099,0.00018799,2]
[328862078,1717903840054,-155.02441737,0.00018799,2]
[328862080,1717903840065,-240.51176507,0.00018799,2]
[328862161,1717903844736,-249.993024,0.00018696,2]
[328862164,1717903844749,-250.006976,0.00018696,2]
[328862167,1717903844760,-2396.43212809,0.00018799,2]
[328862168,1717903844771,-926.69305848,0.00018799,2]
[328862169,1717903844781,-156.86319981,0.00018799,2]
[328862170,1717903844791,-293.96582044,0.00018799,2]
[328862206,1717903849918,-2354.93851751,0.00018799,2]
[328862209,1717903849928,-252.88643939,0.00018799,2]
[328862212,1717903849938,-1380.84,0.00018799,2]
[328862214,1717903849951,-500.0,0.00018799,2]
[328862215,1717903849960,-500.0,0.00018799,2]
[328862217,1717903849971,-500.0,0.00018799,2]
[328862219,1717903849981,-500.0,0.00018799,2]
[328862221,1717903849991,-201.94960906,0.000188,2]
[328862223,1717903850000,-392.9485426,0.000188,2]
[328862392,1717904090144,1800.73497785,9.999e-05,2]
[328862393,1717904091959,154.9690062,9.999e-05,2]
[328862394,1717904104791,154.9690062,9.999e-05,2]
[328862395,1717904123004,1342.97936406,9.999e-05,2]
[328862396,1717904129247,154.9690062,9.999e-05,2]
[328862397,1717904132945,154.9690062,9.999e-05,2]
[328862398,1717904152437,154.9690062,9.999e-05,2]
[328862399,1717904157024,154.9690062,9.999e-05,2]
[328862400,1717904453870,774.49408999,9.999e-05,2]
[328862401,1717904569838,692.46643816,9.999e-05,2]